[Event "Late-Titled-Tuesday-Blitz-May-07-2024"]
[Site "Chess.com"]
[Date "2024.05.07"]
[Round "11"]
[White "DeTimmerman"]
[Black "Szparu"]
[Result "1-0"]
[WhiteElo "2778"]
[BlackElo "2888"]
[TimeControl "180+1"]
[EndTime "16:08:25 PDT"]
[Termination "DeTimmerman won by resignation"]

1. b4 {[%clk 0:02:59.9]} 1... c6 {[%clk 0:02:58.9]} 2. Bb2 {[%clk 0:03:00.2]}
2... a5 {[%clk 0:02:59.5]} 3. b5 {[%clk 0:03:00.8]} 3... cxb5 {[%clk 0:02:59.6]}
4. e4 {[%clk 0:03:01.5]} 4... b4 {[%clk 0:02:59.7]} 5. a3 {[%clk 0:03:02.1]}
5... Nf6 {[%clk 0:02:55.6]} 6. e5 {[%clk 0:03:02]} 6... Nd5 {[%clk 0:02:56.1]}
7. axb4 {[%clk 0:03:02.7]} 7... Nxb4 {[%clk 0:02:55.9]} 8. c3 {[%clk 0:03:03.3]}
8... N4c6 {[%clk 0:02:56]} 9. d4 {[%clk 0:03:04.1]} 9... d5 {[%clk 0:02:42.5]}
10. Bd3 {[%clk 0:03:00.3]} 10... e6 {[%clk 0:02:22.2]} 11. Ba3 {[%clk
0:03:00.2]} 11... Ne7 {[%clk 0:02:09.6]} 12. Ne2 {[%clk 0:02:51.9]} 12... Nbc6
{[%clk 0:02:09.2]} 13. h4 {[%clk 0:02:44.8]} 13... Nf5 {[%clk 0:02:03]} 14. h5
{[%clk 0:02:35.9]} 14... f6 {[%clk 0:01:55.8]} 15. Bxf5 {[%clk 0:01:58.2]} 15...
exf5 {[%clk 0:01:55.8]} 16. exf6 {[%clk 0:01:58.7]} 16... Qxf6 {[%clk
0:01:55.2]} 17. Nf4 {[%clk 0:01:59.2]} 17... Bxa3 {[%clk 0:01:53.5]} 18. Nxa3
{[%clk 0:01:58.9]} 18... O-O {[%clk 0:01:52.4]} 19. O-O {[%clk 0:01:50.5]} 19...
Rd8 {[%clk 0:01:34.6]} 20. Qf3 {[%clk 0:01:46.5]} 20... Qd6 {[%clk 0:01:31.2]}
21. Nb5 {[%clk 0:01:26.9]} 21... Qe7 {[%clk 0:01:31]} 22. Nxd5 {[%clk
0:01:24.6]} 22... Qf7 {[%clk 0:01:31.6]} 23. Nf4 {[%clk 0:01:21.5]} 23... Bd7
{[%clk 0:01:26.5]} 24. Nd6 {[%clk 0:01:18.4]} 24... Qf6 {[%clk 0:01:25.9]} 25.
Nxb7 {[%clk 0:01:17.4]} 25... Rdb8 {[%clk 0:01:26]} 26. Nc5 {[%clk 0:01:18]}
26... Be8 {[%clk 0:01:26.6]} 27. Rfe1 {[%clk 0:01:15]} 27... Qf8 {[%clk
0:01:15.5]} 28. Nfe6 {[%clk 0:01:10.7]} 28... Qf7 {[%clk 0:01:13.2]} 29. Ng5
{[%clk 0:01:03.8]} 29... Qf6 {[%clk 0:01:13.4]} 30. Qd5+ {[%clk 0:01:02.8]}
30... Kh8 {[%clk 0:01:13.4]} 31. Rxe8+ {[%clk 0:00:57.4]} 31... Rxe8 {[%clk
0:01:13]} 32. Nf7+ {[%clk 0:00:57.4]} 32... Kg8 {[%clk 0:01:13.6]} 33. Nd6+
{[%clk 0:00:57.8]} 33... Kh8 {[%clk 0:01:12.4]} 34. Nxe8 {[%clk 0:00:52.6]}
34... Rxe8 {[%clk 0:01:12]} 35. Nb7 {[%clk 0:00:39.4]} 35... Ne7 {[%clk
0:00:47.7]} 36. Qd7 {[%clk 0:00:37.6]} 36... Rb8 {[%clk 0:00:37.4]} 37. Rxa5
{[%clk 0:00:31]} 37... Ng8 {[%clk 0:00:37.2]} 38. Re5 {[%clk 0:00:21]} 38... Qb6
{[%clk 0:00:31.6]} 39. Rb5 {[%clk 0:00:10.5]} 39... Qa6 {[%clk 0:00:32.1]} 40.
Kh2 {[%clk 0:00:06.1]} 40... h6 {[%clk 0:00:17.9]} 41. Nd6 {[%clk 0:00:04.7]}
41... Rxb5 {[%clk 0:00:15.7]} 42. Nxb5 {[%clk 0:00:05.6]} 42... Qf6 {[%clk
0:00:14.3]} 43. Nd6 {[%clk 0:00:05.7]} 43... Qh4+ {[%clk 0:00:14.3]} 44. Kg1
{[%clk 0:00:06.4]} 44... Qxh5 {[%clk 0:00:14.2]} 45. Qxf5 {[%clk 0:00:06.3]}
45... Qd1+ {[%clk 0:00:13.8]} 46. Kh2 {[%clk 0:00:07]} 46... Nf6 {[%clk
0:00:13.6]} 47. f3 {[%clk 0:00:06.6]} 47... Qd2 {[%clk 0:00:12.4]} 48. Nf7+
{[%clk 0:00:06.7]} 48... Kg8 {[%clk 0:00:12.7]} 49. Ne5 {[%clk 0:00:06.8]} 49...
Qxc3 {[%clk 0:00:12.1]} 50. Qe6+ {[%clk 0:00:07.4]} 50... Kh7 {[%clk 0:00:12.4]}
51. d5 {[%clk 0:00:08.3]} 51... Qd4 {[%clk 0:00:11]} 52. d6 {[%clk 0:00:08.6]}
52... Qf4+ {[%clk 0:00:09.8]} 53. Kh3 {[%clk 0:00:08.1]} 53... h5 {[%clk
0:00:05.5]} 54. Nd3 {[%clk 0:00:06.1]} 54... Qg5 {[%clk 0:00:05.1]} 55. d7
{[%clk 0:00:05.9]} 55... h4 {[%clk 0:00:05.4]} 56. Kh2 {[%clk 0:00:06]} 56...
Qg3+ {[%clk 0:00:05.4]} 57. Kg1 {[%clk 0:00:06.8]} 57... Qc7 {[%clk 0:00:03.3]}
58. Qf5+ {[%clk 0:00:06.1]} 58... Kg8 {[%clk 0:00:03.3]} 59. Ne5 {[%clk
0:00:06.5]} 59... Qc1+ {[%clk 0:00:02.4]} 60. Kh2 {[%clk 0:00:07.1]} 60... Qc7
{[%clk 0:00:02.7]} 61. Qe6+ {[%clk 0:00:07.7]} 61... Kh7 {[%clk 0:00:03.1]} 62.
f4 {[%clk 0:00:08.4]} 62... Qd8 {[%clk 0:00:02.2]} 63. Qf5+ {[%clk 0:00:08.2]}
63... Kg8 {[%clk 0:00:02.3]} 64. Qe6+ {[%clk 0:00:08.3]} 64... Kh7 {[%clk
0:00:02.9]} 65. Kh3 {[%clk 0:00:09.1]} 65... Kh6 {[%clk 0:00:01.4]} 66. Nf7+
{[%clk 0:00:09]} 66... Kh7 {[%clk 0:00:01.4]} 67. Nxd8 {[%clk 0:00:09.9]} 1-0

[Event "Late-Titled-Tuesday-Blitz-May-07-2024"]
[Site "Chess.com"]
[Date "2024.05.07"]
[Round "11"]
[White "FMalexhdez"]
[Black "protectiago"]
[Result "1-0"]
[WhiteElo "2232"]
[BlackElo "2074"]
[TimeControl "180+1"]
[EndTime "16:08:28 PDT"]
[Termination "FMalexhdez won by checkmate"]

1. e4 {[%clk 0:01:42.4]} 1... e5 {[%clk 0:02:59.1]} 2. Nf3 {[%clk 0:01:42]} 2...
Nc6 {[%clk 0:02:59.3]} 3. Bc4 {[%clk 0:01:42.1]} 3... Bc5 {[%clk 0:02:58.9]} 4.
d3 {[%clk 0:01:42.4]} 4... Nf6 {[%clk 0:02:58.6]} 5. O-O {[%clk 0:01:43]} 5...
d6 {[%clk 0:02:56.6]} 6. c3 {[%clk 0:01:43.5]} 6... Bb6 {[%clk 0:02:55.5]} 7.
Nbd2 {[%clk 0:01:42.5]} 7... Qe7 {[%clk 0:02:52.5]} 8. a4 {[%clk 0:01:42.3]}
8... a6 {[%clk 0:02:52]} 9. b4 {[%clk 0:01:41.1]} 9... Be6 {[%clk 0:02:49.7]}
10. a5 {[%clk 0:01:37.2]} 10... Ba7 {[%clk 0:02:49.3]} 11. h3 {[%clk 0:01:35]}
11... Nd8 {[%clk 0:02:48.8]} 12. Re1 {[%clk 0:01:34.3]} 12... c6 {[%clk
0:02:41.5]} 13. Qc2 {[%clk 0:01:25]} 13... h6 {[%clk 0:02:36.5]} 14. Nf1 {[%clk
0:01:21.4]} 14... O-O {[%clk 0:02:32.9]} 15. Ng3 {[%clk 0:01:18.2]} 15... Bxc4
{[%clk 0:02:31.9]} 16. dxc4 {[%clk 0:01:18.1]} 16... Ne6 {[%clk 0:02:31.8]} 17.
Be3 {[%clk 0:01:17.4]} 17... Bxe3 {[%clk 0:02:29.1]} 18. Rxe3 {[%clk 0:01:15.9]}
18... Nf4 {[%clk 0:02:28.5]} 19. Ne2 {[%clk 0:01:10.6]} 19... N6h5 {[%clk
0:02:26.7]} 20. Nxf4 {[%clk 0:01:06.9]} 20... Nxf4 {[%clk 0:02:23.8]} 21. Rd1
{[%clk 0:01:00.3]} 21... Rad8 {[%clk 0:02:22.5]} 22. Ne1 {[%clk 0:00:50]} 22...
Kh8 {[%clk 0:02:11.2]} 23. Nd3 {[%clk 0:00:48.3]} 23... Ne6 {[%clk 0:01:54.3]}
24. g3 {[%clk 0:00:43]} 24... Qf6 {[%clk 0:01:45.9]} 25. Kg2 {[%clk 0:00:41.7]}
25... Qg6 {[%clk 0:01:44.1]} 26. h4 {[%clk 0:00:40.8]} 26... f5 {[%clk 0:01:42]}
27. exf5 {[%clk 0:00:38.4]} 27... Rxf5 {[%clk 0:01:37.5]} 28. Kf1 {[%clk
0:00:26.6]} 28... Rdf8 {[%clk 0:01:36.7]} 29. Rd2 {[%clk 0:00:26.2]} 29... Rf3
{[%clk 0:01:19.9]} 30. Rxf3 {[%clk 0:00:14.9]} 30... Rxf3 {[%clk 0:01:20.8]} 31.
Ne1 {[%clk 0:00:14.7]} 31... Qxc2 {[%clk 0:01:13.7]} 32. Rxc2 {[%clk 0:00:13.9]}
32... Rf8 {[%clk 0:01:01.7]} 33. Rd2 {[%clk 0:00:14]} 33... Rd8 {[%clk
0:01:01.5]} 34. Ng2 {[%clk 0:00:14]} 34... Kg8 {[%clk 0:01:01.1]} 35. Ne3 {[%clk
0:00:14]} 35... g6 {[%clk 0:00:58.6]} 36. Ke2 {[%clk 0:00:12.4]} 36... Kf7
{[%clk 0:00:57.2]} 37. b5 {[%clk 0:00:11.2]} 37... Nc5 {[%clk 0:00:54]} 38. bxa6
{[%clk 0:00:09.1]} 38... bxa6 {[%clk 0:00:53.6]} 39. Rb2 {[%clk 0:00:08.4]}
39... Ke6 {[%clk 0:00:48.8]} 40. Rb6 {[%clk 0:00:08.2]} 40... Kd7 {[%clk
0:00:46.6]} 41. Nc2 {[%clk 0:00:07]} 41... Kc7 {[%clk 0:00:43.4]} 42. Nb4 {[%clk
0:00:07.1]} 42... Ne4 {[%clk 0:00:27.9]} 43. Nxa6+ {[%clk 0:00:06.6]} 43... Kd7
{[%clk 0:00:27.2]} 44. Rb7+ {[%clk 0:00:06.5]} 44... Ke6 {[%clk 0:00:26.3]} 45.
Nc7+ {[%clk 0:00:06.2]} 45... Kf5 {[%clk 0:00:24.2]} 46. a6 {[%clk 0:00:06.8]}
46... Nxc3+ {[%clk 0:00:22.9]} 47. Kd3 {[%clk 0:00:06.9]} 47... Na4 {[%clk
0:00:21.9]} 48. Rb6 {[%clk 0:00:05.2]} 48... Nc5+ {[%clk 0:00:21.7]} 49. Kc3
{[%clk 0:00:05.1]} 49... Nxa6 {[%clk 0:00:13.8]} 50. Rxa6 {[%clk 0:00:05.3]}
50... Ke4 {[%clk 0:00:12.4]} 51. Rxc6 {[%clk 0:00:05.1]} 51... Kf3 {[%clk
0:00:11.6]} 52. Ne6 {[%clk 0:00:05.7]} 52... Ra8 {[%clk 0:00:10.3]} 53. Rxd6
{[%clk 0:00:05]} 53... Kxf2 {[%clk 0:00:10.1]} 54. Rd5 {[%clk 0:00:05.1]} 54...
Kxg3 {[%clk 0:00:10.1]} 55. Rxe5 {[%clk 0:00:04.9]} 55... Kxh4 {[%clk 0:00:10]}
56. c5 {[%clk 0:00:05.5]} 56... g5 {[%clk 0:00:10]} 57. c6 {[%clk 0:00:05.8]}
57... g4 {[%clk 0:00:10.4]} 58. c7 {[%clk 0:00:06]} 58... g3 {[%clk 0:00:10.6]}
59. Re4+ {[%clk 0:00:05.2]} 59... Kh3 {[%clk 0:00:09.8]} 60. Rc4 {[%clk
0:00:05.3]} 60... Rc8 {[%clk 0:00:09.2]} 61. Kd3 {[%clk 0:00:05.2]} 61... Kh2
{[%clk 0:00:09.2]} 62. Nf4 {[%clk 0:00:04.5]} 62... h5 {[%clk 0:00:06.5]} 63.
Ke3 {[%clk 0:00:04.3]} 63... h4 {[%clk 0:00:06.3]} 64. Rc2+ {[%clk 0:00:03.9]}
64... Kg1 {[%clk 0:00:02.9]} 65. Kf3 {[%clk 0:00:03.7]} 65... Rxc7 {[%clk
0:00:02]} 66. Rxc7 {[%clk 0:00:02.2]} 66... g2 {[%clk 0:00:01.6]} 67. Rc1+
{[%clk 0:00:02.8]} 67... Kh2 {[%clk 0:00:01.5]} 68. Nxg2 {[%clk 0:00:03.2]}
68... h3 {[%clk 0:00:02.3]} 69. Ne1 {[%clk 0:00:02.3]} 69... Kh1 {[%clk
0:00:02.7]} 70. Kg3 {[%clk 0:00:02]} 70... h2 {[%clk 0:00:02.8]} 71. Nf3# {[%clk
0:00:02.1]} 1-0

[Event "Late-Titled-Tuesday-Blitz-May-07-2024"]
[Site "Chess.com"]
[Date "2024.05.07"]
[Round "11"]
[White "Hasangatin_Ramil"]
[Black "GMG"]
[Result "0-1"]
[WhiteElo "2691"]
[BlackElo "2829"]
[TimeControl "180+1"]
[EndTime "16:08:34 PDT"]
[Termination "GMG won on time"]

1. e4 {[%clk 0:03:00.9]} 1... e5 {[%clk 0:02:58.5]} 2. Nf3 {[%clk 0:03:00.7]}
2... Nc6 {[%clk 0:02:59.1]} 3. Bb5 {[%clk 0:03:00.7]} 3... a6 {[%clk 0:02:59.6]}
4. Ba4 {[%clk 0:03:01]} 4... Nf6 {[%clk 0:02:59.4]} 5. Bxc6 {[%clk 0:03:01.2]}
5... dxc6 {[%clk 0:02:58.9]} 6. d3 {[%clk 0:03:01.7]} 6... Nd7 {[%clk
0:02:57.1]} 7. Be3 {[%clk 0:02:58.8]} 7... Be7 {[%clk 0:02:55.1]} 8. Nbd2 {[%clk
0:02:57.2]} 8... f6 {[%clk 0:02:55.1]} 9. d4 {[%clk 0:02:55.7]} 9... exd4 {[%clk
0:02:52.3]} 10. Bxd4 {[%clk 0:02:55.6]} 10... Nf8 {[%clk 0:02:51.4]} 11. O-O
{[%clk 0:02:51.2]} 11... Bg4 {[%clk 0:02:51.2]} 12. h3 {[%clk 0:02:51.1]} 12...
Bh5 {[%clk 0:02:51.1]} 13. Be3 {[%clk 0:02:47.6]} 13... Ne6 {[%clk 0:02:46.9]}
14. Re1 {[%clk 0:02:47]} 14... Qd7 {[%clk 0:02:44.8]} 15. Nf1 {[%clk 0:02:46.9]}
15... O-O-O {[%clk 0:02:42.7]} 16. Qxd7+ {[%clk 0:02:45.8]} 16... Rxd7 {[%clk
0:02:43.6]} 17. Ng3 {[%clk 0:02:42.8]} 17... Bxf3 {[%clk 0:02:38.7]} 18. gxf3
{[%clk 0:02:43.7]} 18... Rhd8 {[%clk 0:02:36.6]} 19. Kg2 {[%clk 0:02:42.8]}
19... g6 {[%clk 0:02:35.4]} 20. f4 {[%clk 0:02:34.6]} 20... Bd6 {[%clk
0:02:23.7]} 21. Kf3 {[%clk 0:02:33.7]} 21... Bb4 {[%clk 0:02:16.2]} 22. c3
{[%clk 0:02:29.6]} 22... Be7 {[%clk 0:02:10.4]} 23. f5 {[%clk 0:02:27]} 23...
Nc5 {[%clk 0:02:10.3]} 24. Bxc5 {[%clk 0:02:11.6]} 24... Bxc5 {[%clk 0:02:11.2]}
25. Re2 {[%clk 0:02:11.8]} 25... Rd3+ {[%clk 0:01:57.7]} 26. Kg2 {[%clk
0:02:11.1]} 26... Bd6 {[%clk 0:01:58.3]} 27. Rae1 {[%clk 0:02:07.9]} 27... Be5
{[%clk 0:01:56.6]} 28. fxg6 {[%clk 0:02:01.5]} 28... hxg6 {[%clk 0:01:56.3]} 29.
Re3 {[%clk 0:01:53.9]} 29... Rd2 {[%clk 0:01:52.2]} 30. R1e2 {[%clk 0:01:51.8]}
30... Rd1 {[%clk 0:01:39.6]} 31. Re1 {[%clk 0:01:45.6]} 31... Bf4 {[%clk
0:01:38.9]} 32. Rxd1 {[%clk 0:01:44.5]} 32... Rxd1 {[%clk 0:01:39.8]} 33. Re2
{[%clk 0:01:41.1]} 33... c5 {[%clk 0:01:37.9]} 34. Kf3 {[%clk 0:01:30.4]} 34...
Bc1 {[%clk 0:01:35.8]} 35. h4 {[%clk 0:01:21.1]} 35... Kd7 {[%clk 0:01:29.8]}
36. h5 {[%clk 0:01:21.4]} 36... gxh5 {[%clk 0:01:29.8]} 37. Nxh5 {[%clk
0:01:22]} 37... Rd3+ {[%clk 0:01:25.2]} 38. Kg4 {[%clk 0:01:19]} 38... Ke6
{[%clk 0:01:24.1]} 39. f4 {[%clk 0:01:04.6]} 39... Rd1 {[%clk 0:01:19.3]} 40.
Ng7+ {[%clk 0:01:00.1]} 40... Kf7 {[%clk 0:01:15.3]} 41. Nf5 {[%clk 0:01:01]}
41... Rg1+ {[%clk 0:01:14.6]} 42. Ng3 {[%clk 0:01:00.9]} 42... Ke6 {[%clk
0:01:11.4]} 43. Kf3 {[%clk 0:00:56.5]} 43... c4 {[%clk 0:01:06.5]} 44. Rh2
{[%clk 0:00:51.7]} 44... b5 {[%clk 0:00:43.1]} 45. Rh6 {[%clk 0:00:51.5]} 45...
Bxb2 {[%clk 0:00:26.9]} 46. e5 {[%clk 0:00:50.5]} 46... Bxc3 {[%clk 0:00:27]}
47. Rxf6+ {[%clk 0:00:50.4]} 47... Kd5 {[%clk 0:00:27.5]} 48. Nf5 {[%clk
0:00:46]} 48... Rf1+ {[%clk 0:00:24.5]} 49. Ke3 {[%clk 0:00:43.2]} 49... b4
{[%clk 0:00:21]} 50. Ne7+ {[%clk 0:00:42.9]} 50... Kc5 {[%clk 0:00:20.6]} 51.
Rc6+ {[%clk 0:00:39.9]} 51... Kb5 {[%clk 0:00:20.6]} 52. Rxc7 {[%clk 0:00:40.5]}
52... Bb2 {[%clk 0:00:16.1]} 53. Rb7+ {[%clk 0:00:34.2]} 53... Kc5 {[%clk
0:00:14.9]} 54. Rc7+ {[%clk 0:00:33.1]} 54... Kb5 {[%clk 0:00:15.3]} 55. Rb7+
{[%clk 0:00:21.6]} 55... Ka4 {[%clk 0:00:15.6]} 56. Nc6 {[%clk 0:00:18.9]} 56...
a5 {[%clk 0:00:14.2]} 57. Ra7 {[%clk 0:00:16.6]} 57... Kb5 {[%clk 0:00:14.5]}
58. Nxa5 {[%clk 0:00:14.1]} 58... Bc1+ {[%clk 0:00:14.9]} 59. Ke4 {[%clk
0:00:12.3]} 59... Rxf4+ {[%clk 0:00:09]} 60. Kd5 {[%clk 0:00:12.6]} 60... c3
{[%clk 0:00:07.1]} 61. Nb3 {[%clk 0:00:12.1]} 61... Be3 {[%clk 0:00:06.9]} 62.
Rb7+ {[%clk 0:00:12.2]} 62... Ka4 {[%clk 0:00:07]} 63. e6 {[%clk 0:00:10.3]}
63... Rf8 {[%clk 0:00:05]} 64. e7 {[%clk 0:00:10.2]} 64... Re8 {[%clk
0:00:05.3]} 65. Kd6 {[%clk 0:00:08.9]} 65... Ka3 {[%clk 0:00:02.8]} 66. Kd7
{[%clk 0:00:08.7]} 66... Rh8 {[%clk 0:00:02.9]} 67. e8=Q {[%clk 0:00:07.7]}
67... Rxe8 {[%clk 0:00:03.5]} 68. Kxe8 {[%clk 0:00:08.6]} 68... c2 {[%clk
0:00:02.4]} 69. Ra7+ {[%clk 0:00:08.5]} 69... Bxa7 {[%clk 0:00:02]} 0-1

[Event "Late-Titled-Tuesday-Blitz-May-07-2024"]
[Site "Chess.com"]
[Date "2024.05.07"]
[Round "11"]
[White "ChEsper99"]
[Black "TheDiscoOne"]
[Result "0-1"]
[WhiteElo "2297"]
[BlackElo "2487"]
[TimeControl "180+1"]
[EndTime "16:08:41 PDT"]
[Termination "TheDiscoOne won by resignation"]

1. Nf3 {[%clk 0:03:00]} 1... c5 {[%clk 0:02:59.2]} 2. g3 {[%clk 0:03:00.4]} 2...
g6 {[%clk 0:02:59.1]} 3. Bg2 {[%clk 0:03:00.9]} 3... Bg7 {[%clk 0:02:59.7]} 4.
O-O {[%clk 0:03:01.1]} 4... Nf6 {[%clk 0:03:00.2]} 5. d4 {[%clk 0:03:01.1]} 5...
cxd4 {[%clk 0:02:59.7]} 6. Nxd4 {[%clk 0:03:01.1]} 6... Nc6 {[%clk 0:03:00.3]}
7. Nxc6 {[%clk 0:02:59.5]} 7... bxc6 {[%clk 0:03:01.2]} 8. c4 {[%clk 0:02:59.7]}
8... O-O {[%clk 0:03:01]} 9. Nc3 {[%clk 0:03:00.2]} 9... Qc7 {[%clk 0:02:59.4]}
10. Re1 {[%clk 0:02:53.7]} 10... d6 {[%clk 0:02:59]} 11. e4 {[%clk 0:02:51]}
11... Be6 {[%clk 0:02:54.4]} 12. Qa4 {[%clk 0:02:44.6]} 12... Rab8 {[%clk
0:02:50.1]} 13. Bd2 {[%clk 0:02:44.4]} 13... c5 {[%clk 0:02:49.9]} 14. b3 {[%clk
0:02:36.5]} 14... Bd7 {[%clk 0:02:43.5]} 15. Qa3 {[%clk 0:02:33]} 15... Bc6
{[%clk 0:02:41.8]} 16. Rad1 {[%clk 0:02:28.7]} 16... Nd7 {[%clk 0:02:40.3]} 17.
Nd5 {[%clk 0:02:23.2]} 17... Bxd5 {[%clk 0:02:34.6]} 18. exd5 {[%clk 0:02:24.1]}
18... Rfe8 {[%clk 0:02:22]} 19. Bg5 {[%clk 0:02:13.1]} 19... Bf6 {[%clk
0:02:19.5]} 20. Bxf6 {[%clk 0:02:11.2]} 20... Nxf6 {[%clk 0:02:20.4]} 21. Re2
{[%clk 0:02:05.1]} 21... Qd7 {[%clk 0:02:18.2]} 22. Rde1 {[%clk 0:01:56.1]}
22... e5 {[%clk 0:02:15.1]} 23. dxe6 {[%clk 0:01:55.6]} 23... Rxe6 {[%clk
0:02:14.3]} 24. Rxe6 {[%clk 0:01:50.1]} 24... fxe6 {[%clk 0:02:15.2]} 25. Bh3
{[%clk 0:01:48.3]} 25... Re8 {[%clk 0:02:14.9]} 26. Qb2 {[%clk 0:01:35.9]} 26...
Kf7 {[%clk 0:02:05.9]} 27. Qd2 {[%clk 0:01:30.1]} 27... Re7 {[%clk 0:02:00.1]}
28. a3 {[%clk 0:01:21.8]} 28... Re8 {[%clk 0:01:46.1]} 29. b4 {[%clk 0:01:21.7]}
29... cxb4 {[%clk 0:01:45.3]} 30. axb4 {[%clk 0:01:22.6]} 30... d5 {[%clk
0:01:41.3]} 31. cxd5 {[%clk 0:01:08.9]} 31... Qxd5 {[%clk 0:01:39.2]} 32. Qc3
{[%clk 0:01:06.4]} 32... Re7 {[%clk 0:01:31]} 33. Qc8 {[%clk 0:01:00.9]} 33...
Re8 {[%clk 0:01:22.5]} 34. Qc7+ {[%clk 0:00:54.5]} 34... Qd7 {[%clk 0:01:22.4]}
35. Rc1 {[%clk 0:00:49.4]} 35... Qxc7 {[%clk 0:01:18.4]} 36. Rxc7+ {[%clk
0:00:50.3]} 36... Re7 {[%clk 0:01:18.8]} 37. Rc6 {[%clk 0:00:44.2]} 37... Nd5
{[%clk 0:01:14.5]} 38. b5 {[%clk 0:00:38.2]} 38... Nc7 {[%clk 0:01:10.6]} 39. b6
{[%clk 0:00:33.5]} 39... axb6 {[%clk 0:01:07.4]} 40. Rxb6 {[%clk 0:00:34.4]}
40... Nd5 {[%clk 0:01:07]} 41. Ra6 {[%clk 0:00:32.8]} 41... Nb4 {[%clk 0:01:04]}
42. Rb6 {[%clk 0:00:31.6]} 42... Nd5 {[%clk 0:01:04]} 43. Ra6 {[%clk 0:00:32]}
43... Nc7 {[%clk 0:01:00]} 44. Ra7 {[%clk 0:00:30.2]} 44... Ne8 {[%clk 0:00:58]}
45. Ra8 {[%clk 0:00:28.2]} 45... Nf6 {[%clk 0:00:56.6]} 46. Kg2 {[%clk 0:00:26]}
46... h6 {[%clk 0:00:53.3]} 47. Kf3 {[%clk 0:00:23.9]} 47... e5 {[%clk 0:00:53]}
48. Bf1 {[%clk 0:00:23]} 48... e4+ {[%clk 0:00:50.9]} 49. Kg2 {[%clk 0:00:21.2]}
49... g5 {[%clk 0:00:51]} 50. Bc4+ {[%clk 0:00:20.4]} 50... Kg6 {[%clk
0:00:50.1]} 51. Ra3 {[%clk 0:00:17.5]} 51... Rc7 {[%clk 0:00:49.6]} 52. Ba6
{[%clk 0:00:10.2]} 52... Ra7 {[%clk 0:00:44.1]} 53. Ra4 {[%clk 0:00:09.1]} 53...
Rc7 {[%clk 0:00:41.7]} 54. Bb5 {[%clk 0:00:05.9]} 54... Rc2 {[%clk 0:00:36.2]}
55. Ra3 {[%clk 0:00:06]} 55... Rb2 {[%clk 0:00:35.2]} 56. Bc6 {[%clk 0:00:03.3]}
56... Rc2 {[%clk 0:00:28.7]} 57. Ra6 {[%clk 0:00:01.8]} 57... Kf5 {[%clk
0:00:26.9]} 58. Bb7 {[%clk 0:00:01.6]} 58... Ng4 {[%clk 0:00:25.4]} 59. Ra5+
{[%clk 0:00:01.9]} 59... Kf6 {[%clk 0:00:24.8]} 60. Bxe4 {[%clk 0:00:02.1]}
60... Rxf2+ {[%clk 0:00:21.6]} 61. Kg1 {[%clk 0:00:02.5]} 61... Rb2 {[%clk
0:00:18.9]} 62. Rf5+ {[%clk 0:00:02]} 62... Ke6 {[%clk 0:00:18.1]} 63. Rf1
{[%clk 0:00:02.3]} 63... Nf6 {[%clk 0:00:16.7]} 64. Bf5+ {[%clk 0:00:02.5]}
64... Ke5 {[%clk 0:00:16.7]} 65. Bd3 {[%clk 0:00:02.7]} 65... Nd5 {[%clk
0:00:16.4]} 66. Bb5 {[%clk 0:00:01.3]} 66... Rxb5 {[%clk 0:00:15.4]} 67. Re1+
{[%clk 0:00:01.1]} 67... Kf5 {[%clk 0:00:15.2]} 68. Rf1+ {[%clk 0:00:01.1]}
68... Kg4 {[%clk 0:00:15.2]} 69. Re1 {[%clk 0:00:01.4]} 69... Rb2 {[%clk
0:00:14]} 70. Re6 {[%clk 0:00:01.5]} 70... h5 {[%clk 0:00:12.7]} 71. Re4+ {[%clk
0:00:01.9]} 71... Kh3 {[%clk 0:00:11.2]} 72. Rd4 {[%clk 0:00:02.8]} 72... Rb1+
{[%clk 0:00:10.6]} 73. Kf2 {[%clk 0:00:02.8]} 73... Nf6 {[%clk 0:00:10.4]} 74.
Rd6 {[%clk 0:00:02.6]} 74... Ne4+ {[%clk 0:00:09.8]} 0-1